bitfinex/quotes_BTCUSD_20250423
["timestamp","ask_amount","ask_price","bid_price","bid_amount"]
[1745422214317,0.00380224,92060.0,92049.0,0.0014237]
[1745422214565,0.00380224,92060.0,92041.0,0.001]
[1745422214566,0.08679284,92056.0,92041.0,0.001]
[1745422214770,0.34,92053.0,92041.0,0.001]
[1745422214932,0.0494,92050.0,92049.0,0.05]
[1745422215358,0.0494,92050.0,92041.0,0.001]
[1745422215359,0.34,92049.0,92041.0,0.001]
[1745422215552,0.10689014,92044.0,91999.0,0.00152476]
[1745422215775,0.16580515,92044.0,92000.0,0.10689014]
[1745422216007,0.00380357,92043.0,92001.0,0.34]
[1745422216221,0.00380357,92043.0,91991.0,0.05097985]
[1745422216222,0.34,92041.0,91991.0,0.05097985]
[1745422216419,0.34,92041.0,92001.0,0.10689014]
[1745422216420,0.24201014,92040.0,92001.0,0.10689014]
[1745422216632,0.07085783,92039.0,92001.0,0.10689014]
[1745422216853,0.10689014,92038.0,92001.0,0.10689014]
[1745422217134,0.0038034,92037.0,92001.0,0.10689014]
[1745422217367,0.15229014,92036.0,92001.0,0.002]
[1745422217610,0.048,92034.0,91991.0,0.05097985]
[1745422217841,0.34,92032.0,91991.0,0.05097985]
[1745422218072,0.10689014,92031.0,92001.0,0.002]
[1745422218325,0.12051618,92031.0,91991.0,0.05097985]
[1745422218577,0.06319459,92030.0,91991.0,0.05097985]
[1745422218755,0.1106941,92029.0,91991.0,0.05097985]
[1745422219002,0.1106941,92029.0,92001.0,0.003]
[1745422219231,0.10689014,92029.0,92001.0,0.003]
[1745422219422,0.00982208,92028.0,91991.0,0.05097985]
[1745422219709,0.1106941,92027.0,92001.0,0.003]
[1745422219920,0.10689014,92027.0,92001.0,0.003]
[1745422220368,0.10689014,92027.0,91993.0,0.0024238]
[1745422220582,0.10689014,92027.0,91993.0,0.00395071]
[1745422220818,0.10689014,92027.0,91993.0,0.1024238]
[1745422221071,0.34,92026.0,92001.0,0.002]
[1745422221320,0.34,92024.0,91993.0,0.1004238]
[1745422221629,0.1578941,92025.0,91994.0,0.00152695]
[1745422221630,0.10689014,92023.0,91994.0,0.00152695]
[1745422221846,0.00982208,92035.0,92011.0,0.34]
[1745422222115,0.00982208,92035.0,92013.0,0.35454085]
[1745422222377,0.0001526,92049.0,92022.0,0.01454085]
[1745422222606,0.0001526,92049.0,92030.0,0.35454085]
[1745422223040,0.0001526,92049.0,92030.0,0.34]
[1745422223290,0.0001526,92049.0,92013.0,0.01454085]
[1745422223527,0.001,92035.0,92019.0,0.34]
[1745422223779,0.001,92035.0,92022.0,0.01454085]
[1745422223988,0.001,92035.0,92026.0,0.10689014]
[1745422224253,0.0001526,92049.0,92027.0,0.35454085]
[1745422224466,0.0001526,92049.0,92029.0,0.35454085]
[1745422224687,0.0011526,92049.0,92031.0,0.01454085]
[1745422224930,0.0011526,92049.0,92033.0,0.35454085]
[1745422225141,0.0011526,92049.0,92035.0,0.34]
[1745422225367,0.0011526,92049.0,92037.0,0.34]
[1745422225588,0.0011526,92049.0,92039.0,0.34]
[1745422225811,0.0011526,92049.0,92039.0,0.44689014]
[1745422226046,0.0001526,92049.0,92041.0,0.34]
[1745422226262,0.0001526,92049.0,92042.0,0.10841258]
[1745422226477,0.0001526,92049.0,92042.0,0.10689014]
[1745422226701,0.0021526,92049.0,92042.0,0.10689014]
[1745422226949,0.0031526,92049.0,92043.0,0.34]
[1745422227167,0.0011526,92049.0,92046.0,0.01454085]
[1745422227399,0.0061526,92049.0,92048.0,0.35454085]
[1745422227626,0.0051526,92049.0,92048.0,0.46143099]
[1745422227859,0.00982208,92099.0,92049.0,0.01454085]
[1745422228060,0.00982208,92099.0,92048.0,0.51143099]
[1745422228061,0.00380054,92100.0,92052.0,0.01454085]
[1745422228322,0.0497,92106.0,92050.0,0.5861517]
[1745422228323,0.08679284,92080.0,92054.0,0.34]
[1745422228566,0.08679284,92080.0,92055.0,0.1229521]
[1745422229432,0.08679284,92080.0,92055.0,0.12143099]
[1745422230081,0.08679284,92080.0,92055.0,0.10689014]
[1745422230522,0.08779284,92080.0,92056.0,0.00152099]
[1745422230727,0.08779284,92080.0,92058.0,0.34]
[1745422230933,0.08779284,92080.0,92060.0,0.34]
[1745422231187,0.08779284,92080.0,92062.0,0.34]
[1745422231392,0.08779284,92080.0,92064.0,0.34]
[1745422231611,0.08779284,92080.0,92064.0,0.44689014]
[1745422231838,0.08679284,92080.0,92064.0,0.44689014]
[1745422232041,0.0008486,92087.0,92065.0,0.10689014]
[1745422232749,0.0008486,92087.0,92064.0,0.003]
[1745422232941,0.0008486,92087.0,92064.0,0.10989014]
[1745422233285,0.0008486,92087.0,92065.0,0.11241078]
[1745422233790,0.0008486,92087.0,92065.0,0.11141078]
[1745422234359,0.0008486,92087.0,92066.0,0.01454085]
[1745422234514,0.0008486,92087.0,92067.0,0.10689014]
[1745422234698,0.0008486,92087.0,92065.0,0.003]
[1745422234907,0.0008486,92087.0,92066.0,0.10689014]
[1745422235112,0.0008486,92087.0,92065.0,0.10689014]
[1745422235509,0.0008486,92087.0,92066.0,0.10841072]
[1745422235932,0.0008486,92087.0,92065.0,0.003]
[1745422236199,0.0008486,92087.0,92066.0,0.34]
[1745422236620,0.0008486,92087.0,92068.0,0.34]
[1745422236822,0.0008486,92087.0,92070.0,0.34]
[1745422237481,0.0008486,92087.0,92072.0,0.34]
[1745422237690,0.0008486,92087.0,92074.0,0.34]
[1745422237887,0.0008486,92087.0,92075.0,0.00151995]
[1745422238295,0.0008486,92087.0,92074.0,0.34]
[1745422239329,0.0018486,92087.0,92066.0,0.002]
[1745422239533,0.0008486,92087.0,92068.0,0.34]
[1745422239735,0.0018486,92087.0,92070.0,0.34]
[1745422240107,0.0018486,92087.0,92072.0,0.34]
[1745422240309,0.0008486,92087.0,92074.0,0.34]
[1745422240585,0.0008486,92087.0,92075.0,0.00151991]
[1745422240790,0.0008486,92087.0,92074.0,0.34]
[1745422241223,0.0008486,92087.0,92075.0,0.00151991]
[1745422241420,0.0008486,92087.0,92074.0,0.34]
[1745422241632,0.0008486,92087.0,92056.0,0.01454085]
[1745422241894,0.0008486,92087.0,92058.0,0.35454085]
[1745422242109,0.0008486,92087.0,92040.0,0.001]
[1745422242110,0.0488,92085.0,92054.0,0.00255818]
[1745422242311,0.10689014,92084.0,92054.0,0.10944832]
[1745422242540,0.10689014,92084.0,92055.0,0.10841126]
[1745422242748,0.10689014,92084.0,92055.0,0.10689014]
[1745422242960,0.0488,92085.0,92056.0,0.35454085]
[1745422243175,0.0488,92085.0,92059.0,0.01454085]
[1745422243375,0.0488,92085.0,92061.0,0.34]
[1745422243579,0.0488,92085.0,92063.0,0.34]
[1745422243792,0.0488,92085.0,92064.0,0.00152056]
[1745422243992,0.0488,92085.0,92065.0,0.10689014]
[1745422244193,0.0008486,92087.0,92065.0,0.10689014]
[1745422245381,0.0008486,92087.0,92066.0,0.01454085]
[1745422245639,0.0008486,92087.0,92068.0,0.35454085]
[1745422245817,0.0008486,92087.0,92070.0,0.35454085]
[1745422246018,0.0008486,92087.0,92072.0,0.34]
[1745422246261,0.0008486,92087.0,92074.0,0.34]
[1745422247066,0.0008486,92087.0,92068.0,0.001]
[1745422247067,0.08679284,92075.0,92068.0,0.001]
[1745422247325,0.10689014,92074.0,92068.0,0.001]
[1745422247704,0.10789014,92074.0,92068.0,0.001]
[1745422248291,0.001,92074.0,92068.0,0.001]
[1745422248793,0.001,92074.0,92042.0,0.00152121]
[1745422248794,0.001,92074.0,92043.0,0.01454085]
[1745422249016,0.001,92074.0,92034.0,0.34]
[1745422249017,0.10689014,92073.0,92034.0,0.34]
[1745422249244,0.10689014,92073.0,92037.0,0.01454085]
[1745422249462,0.10689014,92073.0,92038.0,0.10689014]
[1745422249897,0.10689014,92073.0,92039.0,0.34152239]
[1745422250156,0.10689014,92073.0,92043.0,0.011]
[1745422250378,0.10689014,92073.0,92044.0,0.00152239]
[1745422250592,0.001,92074.0,92045.0,0.01454085]
[1745422250829,0.001,92073.0,92047.0,0.34]
[1745422251049,0.001,92073.0,92049.0,0.34]
[1745422251765,0.10789014,92073.0,92049.0,0.04328237]
[1745422251959,0.34,92072.0,92039.0,0.01454085]
[1745422252165,0.34,92072.0,92043.0,0.005]
[1745422252368,0.34,92072.0,92044.0,0.12143099]
[1745422252601,0.34,92072.0,92044.0,0.12443099]
[1745422252848,0.001,92074.0,92049.0,0.003]
[1745422253047,0.001,92074.0,92050.0,0.12143099]
[1745422254352,0.001,92074.0,92050.0,0.60069255]
[1745422254555,0.001,92074.0,92051.0,0.01063233]
[1745422254794,0.001,92074.0,92053.0,0.01454085]
[1745422254996,0.001,92072.0,92054.0,0.01063233]
[1745422255434,0.001,92072.0,92055.0,0.01063233]
[1745422255640,0.001,92072.0,92056.0,0.01454085]
[1745422255862,0.001,92072.0,92058.0,0.01454085]
[1745422256060,0.001,92074.0,92060.0,0.01454085]
[1745422256266,0.001,92074.0,92061.0,0.01063233]
[1745422256702,0.001,92074.0,92048.0,0.34]
[1745422256703,0.08679284,92073.0,92062.0,0.01063233]
[1745422256930,0.20246226,92073.0,92062.0,0.01063233]
[1745422257149,0.19368298,92073.0,92056.0,0.002]
[1745422257369,0.08679284,92073.0,92056.0,0.002]
[1745422257798,0.19368298,92073.0,92056.0,0.002]
[1745422258637,0.10689014,92073.0,92036.0,0.35454085]
[1745422258873,0.10689014,92073.0,92041.0,0.35454085]
[1745422259082,0.10689014,92073.0,92061.0,0.001]
[1745422259288,0.10689014,92073.0,92043.0,0.34]
[1745422259494,0.10689014,92073.0,92056.0,0.003]
[1745422259951,0.10689014,92073.0,92056.0,0.002]
[1745422260158,0.08679284,92067.0,92056.0,0.002]
[1745422260570,0.10689014,92066.0,92056.0,0.002]
[1745422260777,0.04970188,92065.0,92056.0,0.002]
[1745422261023,0.10689014,92064.0,92056.0,0.002]
[1745422261228,0.10689014,92064.0,92020.0,0.13524]
[1745422261517,0.05579875,92063.0,92056.0,0.002]
[1745422261730,0.31840448,92060.0,92056.0,0.002]
[1745422261931,0.10689014,92059.0,92022.0,0.10689014]
[1745422262133,0.0486,92058.0,92056.0,0.002]
[1745422262371,0.10689014,92057.0,92056.0,0.003]
[1745422262582,0.10689014,92057.0,92056.0,0.001]
[1745422262790,0.10689014,92057.0,92022.0,0.10689014]
[1745422263002,0.10689014,92057.0,92023.0,0.34]
[1745422263426,0.10689014,92057.0,92018.0,0.1]
[1745422263629,0.10689014,92057.0,92019.0,0.10689014]
[1745422263845,0.11189014,92057.0,92020.0,0.34]
[1745422263988,0.11189014,92057.0,92021.0,0.10689014]
[1745422264419,0.11189014,92057.0,92056.0,0.001]
[1745422264916,0.11289014,92057.0,92056.0,0.001]
[1745422265121,0.10789014,92057.0,92041.0,0.1]
[1745422265324,0.31840448,92051.0,92041.0,0.1]
[1745422265522,0.10689014,92050.0,92041.0,0.1]
[1745422266577,0.005,92057.0,92041.0,0.1]
[1745422266741,0.0486,92058.0,92041.0,0.1]
[1745422266962,0.002,92050.0,92041.0,0.20689014]
[1745422268062,0.002,92050.0,92042.0,0.34]
[1745422268263,0.0483,92070.0,92042.0,0.44689014]
[1745422268528,0.002,92057.0,92042.0,0.44689014]
[1745422269219,0.08679284,92069.0,92042.0,0.342]
[1745422269443,0.12430108,92068.0,92042.0,0.002]
[1745422269642,0.12049942,92068.0,92042.0,0.002]
[1745422269881,0.0466,92057.0,92042.0,0.002]
[1745422270217,0.10689014,92056.0,92041.0,0.1]
[1745422271020,0.0456,92055.0,92041.0,0.1]
[1745422271226,0.10689014,92054.0,92041.0,0.1]
[1745422271373,0.10689014,92054.0,92042.0,0.001]
[1745422271811,0.0456,92055.0,92041.0,0.1]
[1745422272054,0.10689014,92054.0,92041.0,0.1]
[1745422272472,0.10889014,92054.0,92041.0,0.1]
[1745422272685,0.12719915,92053.0,92041.0,0.1]
[1745422272897,0.10689014,92053.0,92041.0,0.1]
[1745422275339,0.003,92053.0,92041.0,0.1]
[1745422275804,0.0456,92055.0,92041.0,0.1]
[1745422276021,0.002,92053.0,92041.0,0.1]
[1745422276300,0.003,92053.0,92041.0,0.1]
[1745422276519,0.04960202,92067.0,92041.0,0.1]
[1745422276746,0.10689014,92052.0,92041.0,0.1]
[1745422278373,0.10689014,92052.0,92041.0,0.101]
[1745422278602,0.10689014,92052.0,92041.0,0.1]
[1745422278862,0.34380253,92051.0,92041.0,0.1]
[1745422279086,0.34,92049.0,92041.0,0.1]
[1745422279309,0.34,92047.0,92041.0,0.1]
[1745422279544,0.10689014,92047.0,92041.0,0.1]
[1745422280475,0.10689014,92046.0,92041.0,0.1]
[1745422280701,0.43059558,92045.0,92041.0,0.1]
[1745422280940,0.44689014,92042.0,92041.0,0.1]
[1745422281155,0.44689014,92042.0,92041.0,0.0482]
[1745422281827,0.44689014,92042.0,92041.0,0.0014]
[1745422282035,0.44689014,92042.0,92041.0,0.0024]
[1745422282247,0.45389014,92042.0,92041.0,0.0024]
[1745422282764,0.46289014,92042.0,92041.0,0.0034]
[1745422283180,0.46989014,92042.0,92041.0,0.0044]
[1745422283858,0.54494315,92042.0,92041.0,0.0044]
[1745422284490,0.67958315,92042.0,92041.0,0.0044]
[1745422284937,0.60453014,92042.0,92041.0,0.0044]
[1745422285715,0.26453014,92042.0,92041.0,0.0044]
[1745422285917,0.023,92042.0,92041.0,0.0044]
[1745422287947,0.001,92047.0,92041.0,0.0014]
[1745422288164,0.006,92042.0,92041.0,0.0014]
[1745422288594,0.11289014,92042.0,92041.0,0.0024]
[1745422288811,0.51708209,92042.0,92041.0,0.0014]
[1745422289030,0.51627915,92042.0,92041.0,0.0014]
[1745422289240,0.53082,92042.0,92041.0,0.0014]
[1745422289457,0.52182,92042.0,92041.0,0.0014]
[1745422289672,0.53082,92042.0,92041.0,0.0014]
[1745422289889,0.34,92029.0,92017.0,0.0004238]
[1745422290105,0.34,92022.0,92017.0,0.0004238]
[1745422290336,0.34,92020.0,92017.0,0.0004238]
[1745422290557,0.44689014,92019.0,92017.0,0.0004238]
[1745422291219,0.44789014,92019.0,92017.0,0.0004238]
[1745422292171,0.45089014,92019.0,92018.0,0.101]
[1745422292381,0.45089014,92019.0,92018.0,0.1]
[1745422292557,0.45789014,92019.0,92018.0,0.101]
[1745422292790,0.49997915,92019.0,92018.0,0.1]
[1745422293001,0.45489014,92019.0,92018.0,0.2]
[1745422293180,0.45989014,92019.0,92018.0,0.201]
[1745422293999,0.45689014,92019.0,92018.0,0.201]
[1745422294214,0.46189014,92019.0,92018.0,0.201]
[1745422294631,0.12189014,92019.0,92018.0,0.201]
[1745422295707,0.01,92019.0,92018.0,0.201]
[1745422295923,0.001,92019.0,92018.0,0.2]
[1745422296130,0.004,92019.0,92018.0,0.201]
[1745422296335,0.007,92019.0,92018.0,0.541]
[1745422296547,0.007,92019.0,92018.0,0.77272976]
[1745422296760,0.009,92019.0,92018.0,0.78199696]
[1745422297168,0.003,92019.0,92018.0,0.78199696]
[1745422297374,0.13468,92064.0,92019.0,0.35454085]
[1745422297583,0.08679284,92059.0,92021.0,0.01454085]
[1745422297789,0.08679284,92059.0,92023.0,0.35454085]
[1745422297790,0.10689014,92058.0,92023.0,0.35454085]
[1745422297994,0.10689014,92058.0,92025.0,0.34]
[1745422298613,0.10689014,92058.0,92026.0,0.01059877]
[1745422298824,0.10689014,92058.0,92027.0,0.01059877]
[1745422299240,0.10689014,92058.0,92028.0,0.01059877]
[1745422299655,0.08679284,92049.0,92029.0,0.01059877]
[1745422299835,0.10689014,92048.0,92029.0,0.01059877]
[1745422300043,0.10689014,92048.0,92027.0,0.001]
[1745422300248,0.08679284,92059.0,92027.0,0.001]
[1745422300448,0.10689014,92058.0,92027.0,0.001]
[1745422300662,0.10689014,92058.0,92028.0,0.01060195]
[1745422301071,0.02020267,92057.0,92028.0,0.01060195]
[1745422301284,0.10689014,92056.0,92029.0,0.01060195]
[1745422301506,0.11069247,92056.0,92029.0,0.01060195]
[1745422301733,0.10689014,92056.0,92029.0,0.01060195]
[1745422301963,0.10689014,92056.0,92019.0,0.34]
[1745422302187,0.10689014,92056.0,92028.0,0.005]
[1745422302415,0.01974856,92055.0,92028.0,0.005]
[1745422302648,0.10689014,92054.0,92028.0,0.005]
[1745422302902,0.10689014,92054.0,92029.0,0.002]
[1745422303127,0.10689014,92054.0,92028.0,0.002]
[1745422303356,0.10689014,92054.0,92028.0,0.004]
[1745422304051,0.10689014,92054.0,92028.0,0.002]
[1745422305256,0.10689014,92054.0,92029.0,0.0491]
[1745422305714,0.10689014,92054.0,92030.0,0.01060241]
[1745422305934,0.00380232,92053.0,92030.0,0.01060241]
[1745422306168,0.10689014,92052.0,92029.0,0.0491]
[1745422306630,0.13456,92062.0,92029.0,0.0491]
[1745422306894,0.10689014,92061.0,92029.0,0.0501]
[1745422307122,0.10689014,92061.0,92030.0,0.11749219]
[1745422307354,0.10689014,92061.0,92031.0,0.0469]
[1745422307576,0.10689014,92061.0,92030.0,0.11749219]
[1745422307577,0.22135284,92091.0,92052.0,0.01454085]
[1745422307796,0.10689014,92086.0,92056.0,0.01454085]
[1745422308048,0.10689014,92086.0,92057.0,0.01060205]
[1745422308271,0.08679284,92091.0,92060.0,0.01454085]
[1745422308500,0.08764184,92091.0,92060.0,0.01454085]
[1745422308730,0.08764184,92091.0,92062.0,0.34]
[1745422308976,0.11582406,92086.0,92062.0,0.34]
[1745422309221,0.08679284,92081.0,92061.0,0.01986224]
[1745422309461,0.10689014,92080.0,92061.0,0.00926019]
[1745422309927,0.08679284,92081.0,92061.0,0.00926019]
[1745422310148,0.0048486,92087.0,92059.0,0.01454085]
[1745422310366,0.11069092,92086.0,92058.0,0.0469]
[1745422310637,0.10689014,92086.0,92058.0,0.0469]
[1745422311583,0.0008486,92087.0,92060.0,0.01454085]
[1745422311816,0.0008486,92087.0,92062.0,0.01454085]
[1745422311817,0.002,92080.0,92062.0,0.01454085]
[1745422312068,0.002,92080.0,92064.0,0.35454085]
[1745422312338,0.002,92080.0,92071.0,0.39984085]
[1745422312575,0.001,92086.0,92073.0,0.35454085]
[1745422312804,0.001,92086.0,92075.0,0.35454085]
[1745422313039,0.0048486,92087.0,92075.0,0.35454085]
[1745422313040,0.0048486,92087.0,92077.0,0.35454085]
[1745422313238,0.0048486,92087.0,92079.0,0.35454085]
[1745422313438,0.0028486,92087.0,92081.0,0.35454085]
[1745422313656,0.001,92086.0,92083.0,0.35454085]
[1745422313871,0.001,92086.0,92085.0,0.35454085]
[1745422314092,0.0028486,92087.0,92085.0,0.46143099]
[1745422314310,0.0008488,92089.0,92088.0,0.01454085]
[1745422314536,0.08679284,92159.0,92090.0,0.01454085]
[1745422314763,0.08679284,92159.0,92088.0,0.01055318]
[1745422314764,0.08679284,92091.0,92088.0,0.01055318]
[1745422314987,0.08679284,92101.0,92079.0,0.0531]
[1745422315222,0.08679284,92101.0,92080.0,0.01454085]
[1745422315698,0.08679284,92101.0,92082.0,0.01454085]
[1745422315926,0.08679284,92101.0,92088.0,0.01454085]
[1745422316379,0.0018488,92094.0,92088.0,0.01454085]
[1745422316598,0.08679284,92111.0,92092.0,0.01454085]
[1745422316824,0.08679284,92111.0,92094.0,0.40384085]
[1745422317074,0.08679284,92111.0,92096.0,0.35454085]
[1745422317305,0.08679284,92111.0,92098.0,0.35454085]
[1745422317581,0.0008492,92117.0,92100.0,0.35454085]
[1745422317822,0.0008492,92117.0,92102.0,0.35454085]
[1745422318052,0.0008492,92117.0,92104.0,0.35454085]
[1745422318300,0.0008492,92117.0,92106.0,0.35454085]
[1745422318525,0.08779284,92111.0,92108.0,0.35454085]
[1745422318753,0.001,92111.0,92110.0,0.34]
[1745422318989,0.0008492,92117.0,92110.0,0.34]
[1745422319225,0.0018476,92112.0,92110.0,0.34]
[1745422319445,0.0018476,92112.0,92111.0,0.44689014]
[1745422320759,0.0018476,92112.0,92111.0,0.34]
[1745422321180,0.0008476,92112.0,92111.0,0.34]
[1745422321385,0.0018476,92112.0,92111.0,0.345]
[1745422322027,0.0018476,92112.0,92111.0,0.348]
[1745422322245,0.0008476,92112.0,92111.0,0.343]
[1745422322463,0.0008476,92112.0,92111.0,0.45740433]
[1745422322744,0.0018476,92112.0,92111.0,0.52434518]
[1745422323446,0.0018476,92112.0,92111.0,0.14549182]
[1745422323643,0.0018476,92112.0,92111.0,0.01751419]
[1745422323853,0.0008476,92112.0,92111.0,0.01251419]
[1745422324057,0.0008476,92112.0,92111.0,0.01051419]
[1745422324279,0.0018476,92112.0,92111.0,0.007]
[1745422324483,0.0018476,92112.0,92102.0,0.01052141]
[1745422324913,0.0018476,92112.0,92111.0,0.007]
[1745422325123,0.0008476,92112.0,92111.0,0.003]
[1745422325342,0.0008476,92112.0,92102.0,0.10689014]
[1745422325559,0.0008476,92112.0,92086.0,0.17984]
[1745422325560,0.0008476,92112.0,92111.0,0.003]
[1745422327491,0.0008476,92112.0,92111.0,0.001]
[1745422327705,0.0018476,92112.0,92111.0,0.001]
[1745422328329,0.0018476,92112.0,92111.0,0.004]
[1745422328751,0.10873774,92112.0,92111.0,0.004]
[1745422329204,0.46069643,92112.0,92111.0,0.004]
[1745422329411,0.44973774,92112.0,92111.0,0.004]
[1745422329922,0.44973774,92112.0,92111.0,0.001]
[1745422330353,0.44973774,92112.0,92062.0,0.32552]
[1745422330354,0.15573774,92112.0,92062.0,0.32552]
[1745422330610,0.47786996,92090.0,92058.0,0.0004242]
[1745422330783,0.10689014,92089.0,92059.0,0.01054122]
[1745422331192,0.10689014,92089.0,92060.0,0.01054122]
[1745422331845,0.10689014,92089.0,92061.0,0.01054122]
[1745422332063,0.10789014,92089.0,92061.0,0.01054122]
[1745422332266,0.10789014,92089.0,92062.0,0.01054122]
[1745422332598,0.10789014,92089.0,92063.0,0.01054122]
[1745422333007,0.0477,92087.0,92064.0,0.01054122]
[1745422333212,0.47786996,92080.0,92064.0,0.01054122]
[1745422333421,0.10689014,92079.0,92059.0,0.006]
[1745422333750,0.10689014,92079.0,92060.0,0.0155607]
[1745422333924,0.10689014,92079.0,92060.0,0.0105607]
[1745422334125,0.11069177,92079.0,92064.0,0.003]
[1745422334326,0.10689014,92079.0,92064.0,0.003]
[1745422334549,0.10689014,92079.0,92059.0,0.003]
[1745422334728,0.10789014,92079.0,92059.0,0.007]
[1745422335122,0.001,92079.0,92058.0,0.0004242]
[1745422335535,0.001,92079.0,92064.0,0.005]
[1745422336231,0.10689014,92078.0,92064.0,0.005]
[1745422336451,0.11767915,92078.0,92064.0,0.005]
[1745422336662,0.11767915,92078.0,92058.0,0.0004242]
[1745422337090,0.11767915,92078.0,92059.0,0.003]
[1745422337550,0.10689014,92078.0,92059.0,0.004]
[1745422337992,0.10689014,92078.0,92058.0,0.0044242]
[1745422338268,0.10789014,92078.0,92058.0,0.0054242]
[1745422338470,0.01078901,92077.0,92059.0,0.003]
[1745422338714,0.10689014,92076.0,92059.0,0.003]
[1745422339578,0.05040176,92075.0,92059.0,0.003]
[1745422339822,0.10689014,92074.0,92058.0,0.0004242]
[1745422340060,0.10689014,92074.0,92059.0,0.005]
[1745422340270,0.10689014,92074.0,92058.0,0.0044242]
[1745422340479,0.001,92076.0,92059.0,0.004]
[1745422340689,0.001,92076.0,92059.0,0.01458573]
[1745422340898,0.001,92076.0,92059.0,0.01358573]
[1745422341104,0.001,92074.0,92059.0,0.01358573]
[1745422341328,0.001,92074.0,92060.0,0.01058573]
[1745422341541,0.0943,92087.0,92060.0,0.01058573]
[1745422341755,0.001,92076.0,92060.0,0.01058573]
[1745422342188,0.001,92076.0,92061.0,0.01058573]
[1745422342409,0.001,92076.0,92062.0,0.01058573]
[1745422342884,0.10789014,92076.0,92062.0,0.01058573]
[1745422343093,0.10689014,92075.0,92063.0,0.01058573]
[1745422343310,0.001,92074.0,92063.0,0.01058573]
[1745422343534,0.10689014,92073.0,92063.0,0.01058573]
[1745422343752,0.10689014,92073.0,92064.0,0.01058573]
[1745422344419,0.10689014,92073.0,92063.0,0.004]
[1745422344860,0.001,92074.0,92064.0,0.002]
[1745422345080,0.001,92074.0,92064.0,0.01258251]
[1745422345573,0.001,92074.0,92065.0,0.01058251]
[1745422346036,0.001,92074.0,92066.0,0.01058251]
[1745422346455,0.001,92074.0,92067.0,0.01058251]
[1745422346917,0.08679284,92085.0,92067.0,0.01058251]
[1745422347139,0.10689014,92084.0,92068.0,0.01058251]
[1745422347579,0.08679284,92109.0,92068.0,0.01058251]
[1745422347580,0.0451,92103.0,92068.0,0.01058251]
[1745422347788,0.001,92073.0,92072.0,0.34]
[1745422347997,0.10689014,92100.0,92073.0,0.34]
[1745422348209,0.001,92084.0,92074.0,0.01058251]
[1745422348639,0.00941024,92111.0,92100.0,0.098]
[1745422348860,0.0467,92118.0,92100.0,0.098]
[1745422349103,0.0488,92129.0,92100.0,0.098]
[1745422349311,0.0487,92132.0,92101.0,0.01058251]
[1745422349519,0.0487,92132.0,92102.0,0.01058251]
[1745422349953,0.0487,92132.0,92103.0,0.00925125]
[1745422350168,0.0487,92132.0,92104.0,0.01058251]
[1745422350391,0.0487,92132.0,92105.0,0.01058251]
[1745422350813,0.0487,92132.0,92106.0,0.00925125]
[1745422351039,0.0008476,92112.0,92106.0,0.01983376]
[1745422351477,0.0008476,92112.0,92107.0,0.01058251]
[1745422351713,0.0008476,92112.0,92107.0,0.01983376]
[1745422351925,0.0008476,92112.0,92107.0,0.15419376]
[1745422352369,0.0008476,92112.0,92107.0,0.14494251]
[1745422352597,0.0008476,92112.0,92108.0,0.01058251]
[1745422352842,0.0018476,92112.0,92108.0,0.01058251]
[1745422353092,0.0008476,92112.0,92109.0,0.01058251]
[1745422353315,0.0018476,92112.0,92109.0,0.01058251]
[1745422353541,0.10689014,92111.0,92109.0,0.01058251]
[1745422353758,0.10689014,92111.0,92110.0,0.01058251]
[1745422353967,0.0008476,92112.0,92110.0,0.01058251]
[1745422354831,0.0008476,92112.0,92111.0,0.01058251]
[1745422355043,0.10773774,92112.0,92111.0,0.01058251]
[1745422355255,0.10873774,92112.0,92111.0,0.01058251]
[1745422355469,0.15633774,92112.0,92111.0,0.01058251]
[1745422355713,0.15633774,92112.0,92109.0,0.003]
[1745422355937,0.10689014,92111.0,92109.0,0.003]
[1745422356162,0.10689014,92111.0,92100.0,0.098]
[1745422356374,0.10689014,92111.0,92110.0,0.005]
[1745422356585,0.10689014,92111.0,92100.0,0.098]
[1745422356809,0.10689014,92107.0,92100.0,0.098]
[1745422357495,0.10689014,92105.0,92100.0,0.098]
[1745422357707,0.0038005,92104.0,92100.0,0.099]
[1745422357917,0.10689014,92103.0,92100.0,0.099]
[1745422358988,0.10689014,92103.0,92100.0,0.098]
[1745422359653,0.10689014,92103.0,92100.0,0.099]
[1745422360098,0.001,92107.0,92100.0,0.098]
[1745422360307,0.001,92107.0,92100.0,0.101]
[1745422360529,0.001,92107.0,92101.0,0.34]
[1745422360740,0.001,92107.0,92100.0,0.098]
[1745422360948,0.001,92107.0,92102.0,0.01059475]
[1745422361607,0.001,92107.0,92103.0,0.01059475]
[1745422361843,0.001,92107.0,92104.0,0.12143099]
[1745422362082,0.001,92107.0,92106.0,0.01454085]
[1745422362372,0.0008476,92112.0,92108.0,0.01454085]
[1745422362798,0.0008476,92112.0,92110.0,0.01454085]
[1745422363227,0.0008476,92112.0,92111.0,0.3651356]
[1745422363447,0.0008476,92112.0,92111.0,0.4994556]
[1745422363668,0.0008476,92112.0,92111.0,0.50871558]
[1745422363908,0.0018476,92112.0,92111.0,0.50871558]
[1745422364554,0.0028476,92112.0,92111.0,0.51771558]
[1745422364771,0.0028476,92112.0,92111.0,0.67450572]
[1745422364984,0.0028476,92112.0,92111.0,0.73157504]
[1745422365932,0.0008476,92112.0,92111.0,0.72257504]
[1745422366165,0.0008476,92112.0,92111.0,0.73257504]
[1745422366434,0.0008476,92112.0,92111.0,0.72757504]
[1745422366639,0.0008476,92112.0,92111.0,0.72257504]
[1745422366857,0.0018476,92112.0,92111.0,0.73057504]
[1745422369116,0.0008484,92148.0,92147.0,0.13202574]
[1745422369743,0.0008484,92148.0,92147.0,0.14128572]
[1745422370411,0.0008484,92148.0,92147.0,0.14228572]
[1745422370628,0.0008484,92148.0,92147.0,0.14128572]
[1745422370852,0.0008484,92148.0,92147.0,0.14328572]
[1745422371953,0.0008484,92148.0,92147.0,0.14728572]
[1745422372150,0.0008484,92148.0,92147.0,0.14528572]
[1745422372400,0.0008484,92148.0,92147.0,0.13502574]
[1745422372622,0.0008484,92148.0,92147.0,0.14002574]